Workbook

Sheet 전체조서
A1: 제5회 예천군 보조금심의위원회 대상자선정 심의 조서
R2: (단위 : 천원)
K3: 16년 신청액 | Q3: 검토조정액 | S3: 심의조정액
A4: 부서명 | B4: 사업 분류 | C4: 공모여부 | E4: 사유기재 | F4: 보 조 사 업 명 | G4: 보 조 사 업 자 | H4: 과목명 | I4: 사 업 내 용 | J4: 2015년 지원액 | K4: 계 | L4: 보조금 | M4: 자부담 | N4: 재원비율 | Q4: 1차(해당부서) | R4: 2차(예산부서) | S4: 3차(위원회)
N5: 계 | O5: 보조금 | P5: 자부담
A6: 계 | F6: =SUBTOTAL(103,F7:F25) -> 16 | J6: =SUBTOTAL(9,J7:J920) -> 0 | K6: =SUBTOTAL(9,K7:K920) -> 538,997 | L6: =SUBTOTAL(9,L7:L920) -> 306,954 | M6: =SUBTOTAL(9,M7:M920) -> 232,043 | N6: =O6+P6 -> 100% | O6: =L6/K6 -> 57% | P6: =M6/K6 -> 43% | Q6: =SUBTOTAL(9,Q7:Q920) -> 306,954 | R6: =SUBTOTAL(9,R7:R25) -> 306,954 | S6: =SUBTOTAL(9,S7:S920) -> 306,954
A7: 농정과 소계 | F7: =SUBTOTAL(103,F8:F21) -> 14 | J7: =SUBTOTAL(9,J9:J19) -> 0 | K7: =SUBTOTAL(9,K8:K21) -> 493,674 | L7: =SUBTOTAL(9,L8:L21) -> 263,977 | M7: =SUBTOTAL(9,M8:M21) -> 229,697 | N7: =K7/K7 -> 100% | O7: =L7/K7 -> 53% | P7: =M7/K7 -> 47% | Q7: =SUBTOTAL(9,Q8:Q21) -> 263,977 | R7: =SUBTOTAL(9,R8:R21) -> 263,977 | S7: =SUBTOTAL(9,S8:S21) -> 263,977
A8: 농정과 | F8: 중소형 농기계 지원 [별지조서 참조] | G8: 예천읍 김춘길 외 12 | H8: 민간자본사업보조 | I8: 2,000,000원*13대*50% | K8: =L8+M8 -> 26,000 | L8: 13,000 | M8: 13,000 | N8: =O8+P8 -> 100% | O8: =L8/K8 -> 50% | P8: =M8/K8 -> 50% | Q8: =L8 -> 13,000 | R8: =Q8 -> 13,000 | S8: =R8 -> 13,000
A9: 농정과 | B9: 보조 | C9: 공모대상 | F9: 우수 농특산물 포장재 지원사업[별지조서 참조] | G9: 용궁면 윤종대 외 4 | H9: 민간자본사업보조 | I9: 44,000,000원*70% | K9: =L9+M9 -> 44,000 | L9: 30,800 | M9: 13,200 | N9: =O9+P9 -> 100% | O9: =L9/K9 -> 70% | P9: =M9/K9 -> 30% | Q9: =L9 -> 30,800 | R9: =Q9 -> 30,800 | S9: =R9 -> 30,800
A10: 농정과 | F10: 소득작목육성지원(비가림시설, 저온저장고 등)[별지조서 참조] | G10: 예천읍 전재홍 외 14 | H10: 민간자본사업보조 | I10: 117,700,000원 * 50% (사업별단가적용) | K10: =L10+M10 -> 117,700 | L10: 58,850 | M10: 58,850 | N10: =O10+P10 -> 100% | O10: =L10/K10 -> 50% | P10: =M10/K10 -> 50% | Q10: =L10 -> 58,850 | R10: 58,850 | S10: 58,850
A11: 농정과 | F11: 민속채소양채류생산기반확충(시설하우스, 관수관비시설 등)[별지조서 참조] | G11: 보문면 김화식 외 22 | H11: 민간자본사업보조 | I11: 138,000,000원 * 50% (사업별단가적용) | K11: 138,000 | L11: 69,000 | M11: 69,000 | N11: 100% | O11: 50% | P11: 50% | Q11: 69,000 | R11: 69,000 | S11: 69,000
A12: 농정과 | F12: 원예작물 비가림 시설 지원[별지조서 참조] | G12: 예천읍 권세운 외 2 | H12: 민간자본사업보조 | I12: 2,300,000원 * 3동 * 50% | K12: 6,900 | L12: 3,450 | M12: 3,450 | N12: 100% | O12: 50% | P12: 50% | Q12: 3,450 | R12: 3,450 | S12: 3,450
A13: 농정과 | F13: 일손절감형 농기자재 지원[별지조서 참조] | G13: 용궁면 권혁수 외 1 | H13: 민간자본사업보조 | I13: 2,300,000원 * 2동 * 50% | K13: 4,600 | L13: 2,300 | M13: 2,300 | N13: 100% | O13: 50% | P13: 50% | Q13: 2,300 | R13: 2,300 | S13: 2,300
A14: 농정과 | F14: 시설원예 노후하우스 기자재 지원[별지조서 참조] | G14: 유천면 이정석 외 2 | H14: 민간자본사업보조 | I14: 7,444,000원 * 50% (사업별단가적용) | K14: 7,444 | L14: 3,722 | M14: 3,722 | N14: 100% | O14: 50% | P14: 50% | Q14: 3,722 | R14: 3,722 | S14: 3,722
A15: 농정과 | F15: 농산물 선별기 지원 | G15: 유천면 화지2길 50 윤희운 | H15: 민간자본사업보조 | I15: 6,000,000원 * 1대 * 50% | K15: 6,000 | L15: 3,000 | M15: 3,000 | N15: 100% | O15: 50% | P15: 50% | Q15: 3,000 | R15: 3,000 | S15: 3,000
A16: 농정과 | F16: 고추 비가림재배시설 지원 | G16: 용문면 금당실길 163-5 고기분 | H16: 민간자본사업보조 | I16: 20,000원 * 1,000㎡ * 50% | K16: 20,000 | L16: 10,000 | M16: 10,000 | N16: 100% | O16: 50% | P16: 50% | Q16: 10,000 | R16: 10,000 | S16: 10,000
A17: 농정과 | F17: 에너지절감시설 설치(보온덮개, 다겹보온커튼 등) | G17: 지보면 오송길 34-14 권재규 | H17: 민간자본사업보조 | I17: 13,000원 * 2,310㎡ * 50% | K17: 30,030 | L17: 15,015 | M17: 15,015 | N17: 100% | O17: 50% | P17: 50% | Q17: 15,015 | R17: 15,015 | S17: 15,015
A18: 농정과 | F18: 과수전용방제기(ss기) | G18: 은풍면 율곡1길 161 김택성 | H18: 민간자본사업보조 | I18: 20,000,000원 * 1대 * 25% | K18: 20,000 | L18: 5,000 | M18: 15,000 | N18: 100% | O18: 25% | P18: 75% | Q18: =L18 -> 5,000 | R18: 5,000 | S18: 5,000
A19: 농정과 | F19: 다목적 농가형 저온저장고 설치 | G19: 은풍면 은풍로 293-9 김수길 | H19: 민간자본사업보조 | I19: 606,060원 * 33㎡ * 50% | K19: =L19+M19 -> 20,000 | L19: 10,000 | M19: 10,000 | N19: =O19+P19 -> 100% | O19: =L19/K19 -> 50% | P19: =M19/K19 -> 50% | Q19: =L19 -> 10,000 | R19: 10,000 | S19: 10,000
A20: 농정과 | B20: 보조 | C20: 공모대상 | F20: 귀농인 영농기반 지원 [별지조서 참조] | G20: 용문면 금당실길 104 남용환 외 8명 | H20: 민간자본사업보조 | I20: 5,000,000원 * 9농가 * 80% | K20: =L20+M20 -> 48,000 | L20: 35,840 | M20: 12,160 | N20: =O20+P20 -> 100% | O20: 80% | P20: 20% | Q20: =L20 -> 35,840 | R20: 35,840 | S20: 35,840
A21: 농정과 | F21: 귀농인 빈집수리비 지원(국도비) | G21: 효자면 상사곡길 47 최병진 | H21: 민간자본사업보조 | I21: 5,000,000원 * 1농가 * 80% | K21: =L21+M21 -> 5,000 | L21: 4,000 | M21: 1,000 | N21: =O21+P21 -> 100% | O21: =L21/K21 -> 80% | P21: =M21/K21 -> 20% | Q21: =L21 -> 4,000 | R21: 4,000 | S21: 4,000
A22: 환경관리과 소계 | F22: =SUBTOTAL(103,F23:F23) -> 1 | J22: =SUBTOTAL(9,J24:J33) -> 0 | K22: =SUBTOTAL(9,K23) -> 5,323 | L22: =SUBTOTAL(9,L23) -> 2,977 | M22: 2,346 | N22: =K22/K22 -> 100% | O22: =L22/K22 -> 56% | P22: =M22/K22 -> 44% | Q22: =SUBTOTAL(9,Q23) -> 2,977 | R22: =SUBTOTAL(9,R23) -> 2,977 | S22: =SUBTOTAL(9,S23) -> 2,977
A23: 환경관리과 | F23: 야생동물 피해예방시설 지원사업[별지조서참조] | G23: 남창한 외 1명 | H23: 민간자본사업 보조 | I23: 야생동물 피해예방시설 설치 : 5,323 | K23: 5,323 | L23: 2,977 | M23: 2,346 | N23: =SUM(O23:P23) -> 100% | O23: =L23/K23 -> 56% | P23: =M23/K23 -> 44% | Q23: =L23 -> 2,977 | R23: =Q23 -> 2,977 | S23: =R23 -> 2,977
A24: 농업기술센터 소계 | F24: =SUBTOTAL(103,F25:F25) -> 1 | J24: =SUBTOTAL(9,J26:J35) -> 0 | K24: =SUBTOTAL(9,K25:K37) -> 40,000 | L24: =SUBTOTAL(9,L25:L37) -> 40,000 | M24: =SUBTOTAL(9,M25:M37) -> 0 | N24: =K24/K24 -> 100% | O24: =L24/K24 -> 100% | P24: =M24/K24 -> 0% | Q24: =SUBTOTAL(9,Q25) -> 40,000 | R24: =SUBTOTAL(9,R25) -> 40,000 | S24: =SUBTOTAL(9,S25) -> 40,000
A25: 농업기술센터 | B25: 국내육성 우수꿀벌계통증식보급 | C25: 공모대상 | F25: 국내육성 우수꿀벌계통증식보급 | G25: 예천군양봉협회 (대표 엄승일) | H25: 민간자본사업보조 | I25: 40,000,000원 * 1개소 | K25: 40,000 | L25: 40,000 | M25: 0 | N25: 100% | O25: 100% | P25: 0% | Q25: 40,000 | R25: =Q25 -> 40,000 | S25: =R25 -> 40,000
